bitfinex/quotes_ETHUSD_20251212
["timestamp","ask_amount","ask_price","bid_price","bid_amount"]
[1765520130226,0.4599,3264.1,3263.9,3.06379846]
[1765520130740,0.0892,3264.0,3263.9,3.06379846]
[1765520131252,0.5454,3264.0,3263.9,3.06379846]
[1765520132120,0.5454,3264.0,3263.7,6.1280142]
[1765520132553,0.4562,3264.0,3263.7,6.1280142]
[1765520132861,0.0928,3263.8,3263.7,3.0640071]
[1765520133228,0.40601865,3264.7,3263.7,7.02352681]
[1765520133432,0.4599,3264.5,3263.7,7.02352681]
[1765520133632,0.4599,3264.5,3263.7,7.48492681]
[1765520133852,0.4599,3264.5,3263.7,6.5855142]
[1765520136166,3.52316648,3264.5,3263.7,6.5855142]
[1765520136331,3.52316648,3264.5,3263.7,3.5215071]
[1765520136532,0.0892,3263.8,3263.7,3.0640071]
[1765520137158,0.5454,3263.8,3263.6,3.06407124]
[1765520137464,0.5454,3263.8,3263.6,3.06410099]
[1765520137465,0.0928,3263.7,3263.6,3.06410099]
[1765520137887,6.12653296,3264.5,3263.7,3.5215071]
[1765520137888,0.485,3264.5,3263.7,3.5215071]
[1765520138196,0.0523,3264.8,3263.8,0.405504]
[1765520138341,0.5373,3264.8,3263.9,6.1276387]
[1765520138540,0.4599,3264.7,3263.9,6.1276387]
[1765520139060,0.4599,3264.7,3263.9,3.06381935]
[1765520139268,0.4599,3264.7,3263.9,6.1276387]
[1765520140152,1.35091463,3264.7,3263.9,6.1276387]
[1765520141381,0.4599,3264.6,3263.9,6.1276387]
[1765520141941,0.4599,3264.6,3263.9,6.5890387]
[1765520142148,0.4599,3264.6,3263.9,6.1276387]
[1765520143777,0.0523,3264.8,3264.0,0.4884]
[1765520144149,0.0523,3264.8,3264.1,0.1849]
[1765520144342,3.58002385,3264.8,3264.1,0.1849]
[1765520144541,4.29281538,3264.8,3264.0,0.4884]
[1765520144774,0.4647,3264.7,3264.0,0.4884]
[1765520145373,0.4647,3264.7,3263.9,6.1276387]
[1765520145573,0.4647,3264.7,3263.9,3.06381935]
[1765520145774,0.0845,3264.0,3263.8,3.06388236]
[1765520145974,3.52779153,3264.7,3263.8,6.12779558]
[1765520146171,0.84300915,3264.6,3263.9,0.495]
[1765520146410,3.11529354,3264.8,3263.9,0.495]
[1765520146411,0.517,3264.8,3263.9,0.9834]
[1765520146875,0.517,3264.8,3264.0,0.4884]
[1765520147071,3.57997839,3264.8,3263.9,0.495]
[1765520147506,0.4647,3264.7,3263.9,0.495]
[1765520147876,0.4647,3264.7,3264.0,6.12745098]
[1765520148374,0.4647,3264.7,3264.0,3.06372549]
[1765520148574,0.4647,3264.7,3264.0,6.12745098]
[1765520149203,0.5373,3264.8,3264.1,0.6733]
[1765520149579,3.06252075,3265.3,3264.1,0.6733]
[1765520149580,3.52739457,3265.1,3264.2,0.4884]
[1765520149777,0.485,3265.0,3264.2,0.4884]
[1765520150110,4.01251626,3265.0,3264.3,3.06344392]
[1765520150404,0.0523,3264.9,3264.3,3.06344392]
[1765520150593,0.0523,3264.9,3264.3,3.74347168]
[1765520150791,0.0523,3264.9,3264.3,3.55184392]
[1765520151013,0.0523,3264.9,3264.3,6.61528784]
[1765520151213,0.0523,3264.9,3264.3,3.55184392]
[1765520151879,0.0523,3264.9,3264.3,6.61528784]
[1765520152108,3.5266431,3265.9,3264.8,0.495]
[1765520152310,3.5266431,3265.9,3264.4,0.95112731]
[1765520152311,1.32065431,3265.9,3264.9,0.495]
[1765520152502,1.32065431,3265.9,3264.9,0.9834]
[1765520152719,0.4647,3265.8,3264.9,0.9834]
[1765520153435,0.0845,3265.0,3264.6,0.485]
[1765520154134,0.0845,3265.0,3264.7,3.06306858]
[1765520154435,0.485,3265.8,3264.9,0.495]
[1765520154905,0.9497,3265.8,3264.9,0.9834]
[1765520155607,0.4647,3265.8,3264.9,0.495]
[1765520155808,0.485,3265.7,3265.0,0.4884]
[1765520156232,0.485,3265.7,3265.1,3.06269333]
[1765520157736,0.4647,3265.8,3265.1,3.06269333]
[1765520157938,0.485,3265.7,3265.1,3.06269333]
[1765520158617,0.485,3265.7,3265.1,3.24759333]
[1765520160103,0.9497,3265.7,3264.8,0.40364686]
[1765520160310,0.9497,3265.7,3264.8,0.89204686]
[1765520160627,0.4647,3265.6,3264.9,3.06288094]
[1765520160825,3.52692791,3265.6,3264.9,3.06288094]
[1765520161013,0.0845,3265.0,3264.6,0.485]
[1765520161213,0.4647,3265.5,3264.7,3.06303908]
[1765520161415,0.4647,3265.5,3264.8,3.062972]
[1765520161653,0.65891558,3265.4,3264.8,3.062972]
[1765520161831,0.65891558,3265.4,3264.6,3.06309809]
[1765520161832,0.0845,3264.9,3264.6,3.06309809]
[1765520162143,0.9459,3265.3,3264.6,3.06313787]
[1765520162306,0.9459,3265.3,3264.3,0.9734]
[1765520162307,0.0845,3264.7,3264.3,3.54836954]
[1765520162508,0.0845,3264.4,3264.2,3.06350918]
[1765520162910,0.0523,3264.7,3264.2,3.06350918]
[1765520163438,0.0523,3264.9,3264.3,0.4884]
[1765520163634,0.0523,3264.9,3264.2,3.06350918]
[1765520163859,0.4647,3264.8,3264.2,3.06350918]
[1765520164313,0.4647,3264.8,3264.2,6.12704695]
[1765520164734,0.4647,3264.8,3264.2,3.06350918]
[1765520165208,0.0845,3264.3,3264.2,3.06350918]
[1765520165840,0.5454,3264.3,3263.7,3.06395474]
[1765520166139,0.4609,3264.3,3264.0,3.06371802]
[1765520166645,0.0882,3264.1,3263.5,3.55254388]
[1765520166805,0.0882,3264.1,3263.6,3.06410099]
[1765520167010,0.0882,3264.1,3263.6,6.12820198]
[1765520167252,0.0882,3264.1,3263.6,3.55250099]
[1765520167466,0.5453,3264.1,3263.6,3.06410099]
[1765520167671,0.5453,3264.1,3263.6,6.12820198]
[1765520168743,0.4647,3264.7,3263.6,6.12820198]
[1765520168943,0.9497,3264.6,3263.6,6.61660198]
[1765520169383,0.4647,3264.5,3263.6,6.61660198]
[1765520169674,0.4647,3264.5,3263.6,3.06410099]
[1765520170254,0.0845,3263.7,3263.6,3.06410099]
[1765520170941,0.0845,3263.7,3263.5,3.06418439]
[1765520171143,0.485,3264.1,3263.6,3.55910099]
[1765520171456,0.9497,3264.1,3263.6,3.55910099]
[1765520171773,0.0848,3263.7,3263.6,3.06410099]
[1765520171947,0.9497,3264.1,3263.6,3.06410099]
[1765520171948,0.485,3264.1,3263.6,3.06410099]
[1765520172276,1.04517529,3264.8,3264.0,0.495]
[1765520172572,0.485,3264.5,3264.0,0.495]
[1765520172942,0.0979,3264.4,3263.8,6.12782644]
[1765520173171,4.58515005,3264.8,3263.8,6.12782644]
[1765520173481,4.10015005,3264.8,3263.9,0.4669]
[1765520173666,0.485,3264.7,3263.9,0.4669]
[1765520173868,1.40544501,3264.7,3263.9,0.4669]
[1765520174372,0.4567,3264.6,3263.8,3.06391322]
[1765520175358,0.4567,3264.6,3263.9,0.4669]
[1765520175567,3.11520382,3264.9,3263.9,0.4669]
[1765520175786,0.485,3264.8,3263.9,0.4669]
[1765520176003,0.89069038,3264.8,3263.9,0.4669]
[1765520176171,1.34739038,3264.8,3263.9,0.4669]
[1765520177484,0.4567,3264.8,3264.0,3.06372549]
[1765520177791,0.0523,3264.9,3264.0,6.12745098]
[1765520177981,0.0523,3264.9,3264.1,0.6483]
[1765520178298,0.4567,3264.8,3264.1,0.6483]
[1765520178497,0.0523,3264.9,3264.1,0.6483]
[1765520178498,0.5373,3264.9,3264.1,0.1814]
[1765520178664,0.4567,3264.8,3264.0,6.12745098]
[1765520178997,0.58047529,3264.0,3263.2,0.001]
[1765520179204,0.4895,3263.9,3263.2,0.001]
[1765520179371,4.19294823,3263.9,3263.2,3.06545191]
[1765520179575,4.19294823,3263.9,3263.2,0.001]
[1765520179886,0.4645,3263.8,3263.2,0.001]
[1765520180087,0.486,3263.7,3263.2,0.001]
[1765520180594,0.9505,3263.7,3263.2,0.001]
[1765520181261,0.4899,3263.3,3263.2,0.001]
[1765520181900,0.5494,3263.3,3263.2,0.001]
[1765520182096,3.61378268,3263.3,3263.2,0.001]
[1765520182297,9.24940668,3263.3,3263.2,0.001]
[1765520182499,9.82988197,3263.3,3263.2,0.001]
[1765520182731,10.68683628,3263.3,3263.2,0.001]
[1765520183528,4.56521228,3263.3,3263.2,0.001]
[1765520184134,1.54505748,3263.9,3263.2,0.001]
[1765520184302,0.0847,3263.3,3263.2,0.001]
[1765520186442,0.5707,3263.3,3263.2,0.001]
[1765520187347,1.0314,3263.3,3263.2,0.001]
[1765520188311,4.09578268,3263.3,3263.2,0.001]
[1765520188527,4.81178146,3263.3,3263.2,0.001]
[1765520189148,5.39225675,3263.3,3263.2,0.001]
[1765520189518,4.90625675,3263.3,3263.2,0.001]
[1765520189850,1.86717407,3263.3,3263.2,0.001]
[1765520190168,1.15117529,3263.3,3263.2,0.001]
[1765520190344,1.61187529,3263.3,3263.2,0.001]
[1765520191548,4.67625797,3263.3,3263.2,0.001]
[1765520193133,7.90525797,3263.3,3263.2,0.001]
[1765520203428,7.41925797,3263.3,3263.2,0.001]
[1765520203670,8.95360596,3263.3,3263.2,0.001]
[1765520204033,5.23860596,3263.3,3263.2,0.001]
[1765520204234,5.72460596,3263.3,3263.2,0.001]
[1765520207959,12.76400632,3263.3,3263.2,0.001]
[1765520208269,12.27800632,3263.3,3263.2,0.001]
[1765520208557,12.76400632,3263.3,3263.2,0.001]
[1765520209455,5.67640596,3263.3,3263.2,0.001]
[1765520209764,5.72870596,3263.3,3263.2,0.001]
[1765520213161,8.95570596,3263.3,3263.2,0.001]
[1765520215065,3.24679702,3263.9,3263.2,0.001]
[1765520215066,3.0619431,3265.9,3263.9,30.3992]
[1765520215266,0.488,3265.8,3265.3,0.3992]
[1765520215466,0.66118862,3265.7,3265.3,0.3992]
[1765520215671,6.12444878,3265.6,3264.7,0.4576]
[1765520215964,6.58954878,3265.6,3264.4,0.3992]
[1765520216149,6.58954878,3265.6,3264.6,0.3992]
[1765520216540,0.4651,3265.5,3264.6,0.3992]
[1765520216745,1.14695488,3265.4,3264.6,0.3992]
[1765520217187,0.4651,3265.3,3264.3,0.3992]
[1765520217780,0.58047529,3265.1,3264.3,0.3992]
[1765520217988,0.488,3265.0,3264.3,0.3992]
[1765520218289,0.9531,3265.0,3264.3,0.3992]
[1765520218568,0.34895753,3264.9,3264.3,0.3992]
[1765520218735,0.34895753,3264.9,3264.0,0.3992]
[1765520218736,0.81405753,3264.9,3264.0,0.3992]
[1765520219152,0.4651,3264.8,3264.0,0.3992]
[1765520219867,6.12613716,3264.7,3264.0,0.3992]
[1765520220046,0.488,3264.6,3264.0,0.3992]
[1765520220249,1.19592372,3264.6,3264.0,0.3992]
[1765520220868,1.77639901,3264.6,3264.0,0.3992]
[1765520221866,3.06372549,3264.0,3263.5,0.4576]
[1765520222067,0.488,3263.9,3263.6,0.3992]
[1765520222675,0.488,3263.9,3263.7,0.3992]
[1765520222871,0.488,3263.9,3263.3,0.3992]
[1765520223177,0.4651,3263.8,3263.3,0.3992]
[1765520223372,0.4651,3263.8,3263.2,0.051]
[1765520223373,0.3248,3263.3,3263.2,0.051]
[1765520223670,3.34967934,3263.3,3263.2,0.051]
[1765520223986,6.73886202,3263.3,3263.2,0.051]
[1765520224144,5.59893982,3263.3,3263.2,0.051]
[1765520224344,6.06263982,3263.3,3263.2,0.051]
[1765520224874,7.20256202,3263.3,3263.2,0.051]
[1765520226181,0.1956,3262.7,3262.3,0.001]
[1765520226344,0.705104,3262.4,3262.3,0.001]
[1765520226751,1.168604,3262.4,3262.3,0.001]
[1765520227960,4.81430734,3262.4,3262.3,0.001]
[1765520245205,4.35080734,3262.4,3262.3,0.001]
[1765520245366,5.00976222,3262.4,3262.3,0.001]
[1765520245566,5.46516222,3262.4,3262.3,0.001]
[1765520247220,5.46516222,3262.4,3262.3,0.9424]
[1765520247221,3.06522805,3262.4,3262.3,0.9424]
[1765520247497,0.488,3262.4,3262.3,0.9424]
[1765520247696,3.55322805,3262.4,3262.3,0.9424]
[1765520252379,5.00450734,3262.4,3262.3,0.001]
[1765520252686,6.51476033,3262.4,3262.3,0.001]
[1765520253199,6.82746033,3262.4,3262.3,0.001]
[1765520255408,6.02676033,3262.4,3262.3,0.001]
[1765520255604,3.64570334,3262.4,3262.3,0.9424]
[1765520255899,4.13370334,3262.4,3262.3,0.9424]
[1765520256900,4.13370334,3262.4,3262.3,0.4872]
[1765520257272,11.89468581,3262.4,3262.3,0.001]
[1765520257479,13.8447588,3262.4,3262.3,0.001]
[1765520258000,6.81178033,3262.4,3262.3,0.001]
[1765520258201,6.35768033,3262.4,3262.3,0.001]
[1765520258395,6.03518033,3262.4,3262.3,0.4872]
[1765520258592,6.35768033,3262.4,3262.3,0.001]
[1765520258792,6.03518033,3262.4,3262.3,0.001]
[1765520259205,6.35898033,3262.4,3262.3,0.001]
[1765520260792,6.03518033,3262.4,3262.3,0.001]
[1765520261482,6.81178033,3262.4,3262.3,0.001]
[1765520262012,6.35768033,3262.4,3262.3,0.001]
[1765520263114,6.81178033,3262.4,3262.3,0.001]
[1765520265603,13.85589966,3262.4,3262.3,0.001]
[1765520267918,14.18112303,3262.4,3262.3,0.001]
[1765520270694,6.35668033,3262.4,3262.3,0.001]
[1765520271111,6.81078033,3262.4,3262.3,0.001]
[1765520271791,5.45370504,3262.4,3262.3,0.9582]
[1765520272032,4.53820734,3262.4,3262.3,0.474]
[1765520272233,3.95773205,3262.4,3262.3,0.001]
[1765520272437,4.53820734,3262.4,3262.3,0.001]
[1765520274037,4.53820734,3262.4,3262.3,0.474]
[1765520274518,4.05120734,3262.4,3262.3,0.474]
[1765520274712,5.24983248,3262.4,3262.3,0.474]
[1765520275100,3.55222805,3262.4,3262.3,0.474]
[1765520275304,4.42230334,3262.4,3262.3,0.001]
[1765520275906,4.13270334,3262.4,3262.3,0.474]
[1765520276304,4.42230334,3262.4,3262.3,0.001]
[1765520276542,5.17103808,3262.4,3262.3,0.001]
[1765520276942,5.17103808,3262.4,3262.3,0.474]
[1765520276943,4.88143808,3262.4,3262.3,0.474]
[1765520277124,4.13270334,3262.4,3262.3,0.9582]
[1765520277857,4.13370334,3262.4,3262.3,0.9582]
[1765520278063,3.06522805,3262.4,3262.3,0.9582]
[1765520278658,0.488,3262.4,3262.3,0.9582]
[1765520279443,9.19233714,3263.6,3262.3,0.9582]
[1765520279638,1.987709,3263.5,3262.6,0.473]
[1765520279879,1.40723371,3263.5,3262.7,0.4842]
[1765520280235,1.987709,3263.5,3262.7,0.4842]
[1765520280432,1.987709,3263.5,3263.4,0.473]
[1765520280670,0.91923371,3263.5,3263.4,0.473]
[1765520280963,0.91923371,3263.5,3263.0,0.1188]
[1765520280964,0.9665,3263.5,3263.0,0.1188]
[1765520281155,6.12857754,3263.4,3263.0,0.603]
[1765520281469,0.58047529,3263.3,3263.0,0.603]
[1765520281962,0.58047529,3263.3,3263.2,0.473]
[1765520282162,1.60660556,3263.3,3263.2,0.473]
[1765520283057,1.60660556,3263.3,3263.2,0.9572]
[1765520283364,7.73537092,3263.3,3263.0,0.1188]
[1765520283759,4.67098824,3263.3,3263.2,0.473]
[1765520284947,4.67098824,3263.3,3263.2,0.9572]
[1765520285349,3.64485797,3263.3,3263.2,0.9572]
[1765520285663,4.13185797,3263.3,3263.2,0.9572]
[1765520286046,3.64485797,3263.3,3263.2,0.9572]
[1765520286248,4.13185797,3263.3,3263.2,0.9572]
[1765520286765,3.64485797,3263.3,3263.2,0.9572]
[1765520286966,4.13185797,3263.3,3263.2,0.9572]
[1765520291475,3.64485797,3263.3,3263.2,0.9572]
[1765520291686,4.13185797,3263.3,3263.2,0.9572]
[1765520292270,1.06747529,3263.3,3263.2,0.9572]
[1765520292482,0.002,3264.0,3263.2,0.9572]
[1765520292684,3.0657439,3264.0,3263.9,0.473]
[1765520292984,3.55272549,3264.0,3263.9,0.473]
[1765520293185,4.13320078,3264.0,3263.9,0.9617]
[1765520294877,0.489,3264.0,3263.9,0.9617]
[1765520296070,0.002,3264.0,3263.9,0.9617]
[1765520296275,0.489,3264.0,3263.9,0.9617]
[1765520297391,3.55272549,3264.0,3263.9,0.9617]
[1765520298669,3.06572549,3264.0,3263.9,0.9617]
[1765520298870,0.489,3264.0,3263.9,0.9617]
[1765520299283,0.002,3264.0,3263.9,0.9617]
[1765520299820,0.002,3264.0,3263.9,1.3642593]
[1765520300114,0.002,3264.0,3263.9,0.9617]
[1765520305394,0.489,3264.0,3263.9,0.9617]
[1765520307090,3.55272549,3264.0,3263.9,0.9617]
[1765520308392,0.489,3264.0,3263.9,0.9617]
[1765520309026,6.88125098,3264.0,3263.4,0.4999]
[1765520309223,6.88125098,3264.0,3263.0,0.1188]
[1765520309224,1.3788251,3263.9,3263.0,0.6187]
[1765520309443,1.95930039,3263.9,3263.0,0.6187]
[1765520309642,0.4991,3263.8,3263.0,0.6187]
[1765520310699,6.1280142,3263.7,3263.0,0.6187]
[1765520310899,1.14971142,3263.6,3263.0,0.6187]
[1765520313323,6.12838976,3263.5,3263.0,0.6187]
[1765520314532,3.06419488,3263.5,3263.0,0.6187]
[1765520315100,3.06419488,3263.5,3263.4,0.4595]
[1765520315705,3.06419488,3263.5,3263.0,0.6187]
[1765520316130,6.12838976,3263.5,3263.0,0.6187]
[1765520317107,6.62748976,3263.5,3263.0,0.6187]
[1765520317436,7.40520988,3263.5,3263.0,0.6187]
[1765520317860,7.40520988,3263.5,3262.6,0.4999]
[1765520317861,0.2637,3263.1,3262.6,0.4999]
[1765520318032,0.486,3263.0,3262.6,0.4999]
[1765520318433,0.486,3263.0,3262.9,0.4595]
[1765520319111,0.486,3263.0,3262.9,0.9594]
[1765520320011,3.55066441,3263.0,3262.9,0.9594]
[1765520321854,0.486,3263.0,3262.9,0.9594]
[1765520330844,3.55066441,3263.0,3262.9,0.4595]
[1765520331019,3.55066441,3263.0,3262.4,0.4684]
[1765520331020,4.48637909,3263.0,3262.4,0.4684]
[1765520331224,3.82486441,3263.0,3262.5,0.4684]
[1765520333725,3.55066441,3263.0,3262.5,0.4684]
[1765520333927,3.55066441,3263.0,3262.9,0.4771]
[1765520335561,3.55066441,3263.0,3262.5,0.4684]
[1765520336468,3.55066441,3263.0,3262.3,0.001]
[1765520336469,3.55316441,3263.0,3262.3,0.001]
[1765520336637,0.486,3262.9,3262.5,0.4684]
[1765520338065,0.58047529,3263.1,3262.8,0.4771]
[1765520338281,0.486,3263.0,3262.9,0.4771]
[1765520338576,0.486,3263.0,3262.5,0.4684]
[1765520339132,0.2868,3262.6,3262.3,0.001]
[1765520339458,0.486,3262.5,3262.3,0.001]
[1765520340338,0.486,3262.5,3262.4,0.4771]
[1765520340339,3.55113409,3262.5,3262.4,0.4771]
[1765520340652,0.486,3262.5,3262.3,0.001]
[1765520340836,0.7733,3262.4,3262.3,0.001]
[1765520341037,0.76687529,3262.9,3262.4,0.4771]
[1765520341339,3.777364,3262.8,3262.5,0.4771]
[1765520341669,0.486,3262.7,3262.5,0.4771]
[1765520341965,0.486,3262.7,3262.5,0.9455]
[1765520342167,3.55094621,3262.7,3262.6,0.4771]
[1765520342568,3.55094621,3262.7,3262.3,0.4694]
[1765520342569,3.06494621,3262.7,3262.3,0.4694]
[1765520342732,0.486,3262.6,3262.3,0.4694]
[1765520342935,3.06487299,3262.8,3262.6,0.4771]
[1765520343261,0.486,3262.7,3262.6,0.4771]
[1765520343838,0.4885,3263.4,3262.6,0.9455]
[1765520344064,0.486,3263.3,3262.7,0.4771]
[1765520344232,3.06447658,3263.2,3262.7,0.4771]
[1765520344437,0.58047529,3263.1,3262.7,0.4771]
[1765520344636,0.58047529,3263.1,3262.7,0.9455]
[1765520345540,1.06897529,3263.1,3262.7,0.4771]
[1765520346773,0.58047529,3262.9,3262.7,0.4771]
[1765520346969,0.486,3262.8,3262.7,0.4771]
[1765520347264,0.58047529,3262.9,3262.7,0.4771]
[1765520347562,0.58047529,3262.9,3262.8,0.4771]
[1765520347749,0.486,3262.9,3262.8,0.4771]
[1765520349185,3.55075834,3262.9,3262.8,0.4771]
[1765520351715,7.56385173,3262.9,3262.3,0.4694]
[1765520351989,3.06475834,3262.9,3262.8,0.4771]
[1765520352287,3.55075834,3262.9,3262.8,0.4771]
[1765520352655,3.83755834,3262.9,3262.5,0.4684]
[1765520353287,6.90231668,3262.9,3262.5,0.4684]
[1765520353465,3.83755834,3262.9,3262.5,0.4684]
[1765520354384,0.2929,3262.6,3262.3,0.001]
[1765520354677,0.486,3262.5,3262.3,0.001]
[1765520354879,0.0226,3262.4,3262.3,0.001]
[1765520355693,3.08782805,3262.4,3262.3,0.001]
[1765520355854,0.0226,3262.4,3262.3,0.001]
[1765520356171,3.5512261,3262.5,3262.3,0.001]
[1765520356653,6.32121007,3262.9,3262.4,0.9572]
[1765520356654,0.48714336,3262.9,3262.4,0.9572]
[1765520356859,3.55085227,3262.8,3262.6,0.4785]
[1765520358563,0.3065,3262.7,3262.3,0.001]
[1765520358764,0.7749,3262.7,3262.3,0.001]
[1765520360280,3.06504015,3262.6,3262.3,0.001]
[1765520360471,6.1300803,3262.6,3262.3,0.001]
[1765520360800,3.06504015,3262.6,3262.3,0.001]
[1765520362169,6.6000803,3262.6,3262.3,0.001]
[1765520363277,0.3065,3262.4,3262.3,0.001]
[1765520363481,0.7925,3262.4,3262.3,0.001]
[1765520363695,1.2609,3262.4,3262.3,0.001]
[1765520364466,4.90660334,3262.4,3262.3,0.001]
[1765520366182,5.31210734,3262.4,3262.3,0.001]
[1765520366375,6.22637276,3262.4,3262.3,0.001]
[1765520367999,15.09183947,3262.4,3262.3,0.001]
[1765520368197,0.98597929,3262.3,3262.2,0.001]
[1765520368495,4.5260013,3262.3,3262.2,0.001]
[1765520369996,5.0120013,3262.3,3262.2,0.001]
[1765520370170,5.7223415,3262.3,3262.2,0.001]
[1765520376383,5.84510509,3262.3,3262.2,0.001]
[1765520376981,5.35910509,3262.3,3262.2,0.001]
[1765520377382,4.3608375,3262.3,3262.2,0.001]
[1765520377620,3.55602201,3262.3,3262.2,0.001]
[1765520377968,4.5420013,3262.3,3262.2,0.001]
[1765520378096,3.95682601,3262.3,3262.2,0.4795]
[1765520378288,3.55132201,3262.3,3262.2,0.4795]
[1765520378487,3.55132201,3262.3,3262.2,0.9582]
[1765520379206,3.6457973,3262.3,3262.2,0.9582]
[1765520379398,4.1317973,3262.3,3262.2,0.9582]
[1765520381116,1.06647529,3262.3,3262.2,0.9582]
[1765520381697,4.1317973,3262.3,3262.2,0.9582]
[1765520381902,4.1317973,3262.3,3262.2,0.001]
[1765520382728,4.4382973,3262.3,3262.2,0.001]
[1765520383028,4.1317973,3262.3,3262.2,0.001]
[1765520383218,4.85149077,3262.3,3262.2,0.001]
[1765520383420,4.85149077,3262.3,3262.2,0.4922]
[1765520383728,4.1317973,3262.3,3262.2,0.4922]
[1765520384422,4.1317973,3262.3,3262.2,0.52156]
[1765520385305,4.1317973,3262.3,3262.2,0.06496]
[1765520387639,0.58047529,3262.2,3261.9,0.4576]
[1765520388003,0.58047529,3262.2,3262.1,0.4912]
[1765520389552,3.64589126,3262.2,3262.1,0.4912]
[1765520392254,3.64589126,3262.2,3261.9,0.001]
[1765520392255,8.41892856,3262.2,3261.9,0.001]
[1765520392455,4.36561259,3262.2,3262.1,0.4912]
[1765520393254,4.85161259,3262.2,3262.1,0.4912]
[1765520393962,4.13189126,3262.2,3262.1,0.4912]
[1765520394167,3.55141597,3262.2,3262.1,0.9478]
[1765520394660,3.55141597,3262.2,3262.1,0.4912]
[1765520397257,3.55141597,3262.2,3262.1,0.9478]
[1765520398435,3.55141597,3262.2,3262.1,0.4912]
[1765520398838,0.486,3262.2,3262.1,0.9478]
[1765520400486,3.55141597,3262.2,3262.1,0.9478]
[1765520400661,0.486,3262.2,3262.1,0.9478]
[1765520401160,3.06487446,3262.8,3262.1,4.01330004]
[1765520401366,0.9203682,3263.2,3262.7,6.13235761]
[1765520401552,0.002,3263.7,3263.2,0.58047529]
[1765520402168,0.002,3263.7,3262.8,1.43338547]
[1765520402361,0.002,3263.7,3263.3,0.486]
[1765520402663,0.002,3263.7,3263.4,3.06428877]
[1765520402868,0.002,3263.7,3263.5,0.66146077]
[1765520404664,0.002,3263.7,3263.6,3.06410099]
[1765520406781,0.002,3263.7,3263.6,9.28573389]
[1765520407281,0.002,3263.7,3263.6,9.69123789]
[1765520407483,0.002,3263.7,3263.6,39.69123789]
[1765520407780,0.002,3263.7,3263.6,39.39626383]
[1765520408033,0.002,3263.7,3263.6,31.97156183]
[1765520408155,0.002,3263.7,3263.6,22.77451083]
[1765520408355,0.002,3263.7,3263.6,38.02249083]
[1765520408550,0.002,3263.7,3263.6,37.50461783]
[1765520408761,0.002,3263.7,3263.6,28.43920283]
[1765520409348,0.002,3263.7,3263.6,12.74896783]
[1765520409642,0.002,3263.7,3263.6,22.43718089]
[1765520410380,0.002,3263.7,3263.6,9.28573389]
[1765520410554,0.002,3263.7,3263.6,3.06410099]
[1765520410757,0.002,3263.7,3263.6,3.64457628]
[1765520412049,0.002,3263.7,3263.6,3.18674262]
[1765520412254,0.002,3263.7,3263.6,3.92426457]
[1765520414183,0.002,3263.7,3263.6,0.86016358]
[1765520414480,0.002,3263.7,3263.6,0.12264163]
[1765520414686,0.002,3263.7,3263.6,3.18674262]
[1765520417571,0.002,3263.7,3263.6,8.82790023]
[1765520418182,0.002,3263.7,3263.6,37.15803352]
[1765520418385,0.002,3263.7,3263.6,40.59160707]
[1765520418573,0.002,3263.7,3263.6,34.95044946]
[1765520418892,0.002,3264.0,3263.9,27.38761929]
[1765520419061,0.002,3264.0,3263.9,33.5147769]
[1765520419258,0.002,3264.0,3263.9,34.9324679]
[1765520419486,0.002,3264.0,3263.9,37.99019784]
[1765520419990,0.002,3264.0,3263.9,39.69685012]
[1765520420287,0.002,3264.0,3263.9,44.94133847]
[1765520423258,0.002,3264.0,3263.9,14.94133847]
[1765520423482,0.002,3264.0,3263.9,44.94133847]
[1765520423683,0.002,3264.0,3263.9,45.40406578]
[1765520424295,0.002,3264.0,3263.9,15.40406578]
[1765520424477,0.002,3264.0,3263.9,45.40406578]
[1765520424976,0.002,3264.0,3263.9,45.52665254]
[1765520425292,0.002,3264.0,3263.9,15.52665254]
[1765520425467,0.002,3264.0,3263.9,45.52665254]
[1765520426393,1e-08,3264.4,3264.3,34.04942321]
[1765520426564,1e-08,3264.4,3264.3,37.59315315]
[1765520426972,1e-08,3264.4,3264.3,38.15502711]
[1765520427774,1e-08,3264.4,3264.3,37.71572113]
[1765520428298,1e-08,3264.4,3264.3,45.06078068]
[1765520428871,1e-08,3264.4,3264.3,45.50008666]
[1765520429087,1e-08,3264.4,3264.3,37.66902711]
[1765520429301,1e-08,3264.4,3264.3,9.03276613]
[1765520429601,1e-08,3264.4,3264.3,6.76258819]
[1765520430101,1e-08,3264.4,3264.3,6.35708419]
[1765520430272,1e-08,3264.4,3264.3,6.76258819]
[1765520430474,1e-08,3264.4,3264.3,9.05305719]
[1765520431292,1e-08,3264.4,3264.3,4.65799119]
[1765520431501,1e-08,3264.4,3264.3,5.07091431]
[1765520432075,1e-08,3264.4,3264.3,4.49043902]
[1765520432076,0.45700001,3264.4,3264.3,4.49043902]
[1765520432275,0.45700001,3264.4,3264.3,3.06344392]
[1765520432276,0.93950001,3264.4,3264.3,3.06344392]
[1765520432492,0.93950001,3264.4,3263.9,0.46272731]
[1765520432493,0.93950001,3264.4,3264.0,6.12745098]
[1765520432696,0.9395,3264.3,3264.1,0.94522731]
[1765520433175,0.457,3264.2,3264.1,0.4825]
[1765520433498,0.457,3264.2,3264.0,3.06372549]
[1765520433499,0.9395,3264.2,3264.0,3.06372549]
[1765520433690,0.457,3264.1,3264.0,4.10120078]
[1765520435201,0.9395,3264.1,3264.0,3.06372549]
[1765520438404,0.9395,3264.1,3263.9,3.5265262]
[1765520438610,0.457,3264.0,3263.9,3.5265262]
[1765520438983,1e-08,3264.4,3263.9,3.5265262]
[1765520439178,0.48250001,3264.4,3264.3,0.46272731]
[1765520439714,1e-08,3264.4,3264.3,0.46272731]
[1765520440977,0.45700001,3264.4,3264.3,0.46272731]